[Event "Arona Festival 2024"]
[Site "Arona Tenerife"]
[Date "2024.06.24"]
[Round "4.7"]
[White "Sankalp Gupta"]
[Black "Admiraal, Miguoel"]
[Result "1-0"]
[ECO "B11"]
[WhiteElo "2552"]
[BlackElo "2451"]
[Annotator "TA"]
[PlyCount "53"]
[EventDate "2024.06.20"]
[EventType "swiss"]
[EventCountry "ESP"]
[SourceTitle "playchess.com"]
[Source "ChessBase"]
[SourceQuality "1"]
[TimeControl "5400+30"]

{[%evp 9,53,34,48,20,36,33,33,38,41,17,27,31,61,26,35,41,33,34,66,63,76,71,54,68,114,92,102,100,132,122,291,239,254,169,157,163,257,251,325,332,410,373,1856,1935,29990,29991]} 1. e4 {[%emt 0:02:24]} c6 {[%emt 0:00:24]} 2. Nf3 {[%emt 0:00:17]} d5 {[%emt 0:00:17]} 3. Nc3 {[%emt 0:00:19]} dxe4 {[%emt 0:01:04]} 4. Nxe4 {[%emt 0:00:02]} Nf6 {[%emt 0:00:14]} 5. Qe2 {[%emt 0:00:03]} Na6 {[%emt 0:00:29]} 6. Nxf6+ {[%emt 0:00:57]} gxf6 {[%emt 0:00:03]} 7. d4 {[%emt 0:00:07]} h5 {[%emt 0:00:11][%cal Bh7h5,Bh5h4][%mdl 32]} 8. c3 {[%emt 0:00:42] White is slightly better.} h4 {[%emt 0:01:12]} 9. h3 {[%emt 0:00:05]} Bf5 {[%emt 0:09:06]} 10. Qd1 {[%emt 0:01:04]} e6 {[%emt 0:11:04]} 11. Bd3 {[%emt 0:00:47] Hoping for Bxf5.} Bxd3 {[%emt 0:02:04]} 12. Qxd3 {[%emt 0:00:02]} Qd5 {[%emt 0:04:57]} 13. O-O {[%emt 0:00:34]} Bd6 {[%emt 0:03:46]} 14. b4 {[%emt 0:09:29]} b5 {[%emt 0:12:43]} 15. Bd2 {[%emt 0:15:16]} Nc7 {[%emt 0:10:55]} 16. Rfc1 {[%emt 0:01:05][%cal Bf1c1,Bc1c4,Bc4c6][%mdl 32]} Kd7 {[%emt 0:12:12]} (16... Qc4 $14 17. Qxc4 bxc4) 17. c4 $16 {[%emt 0:02:17]} bxc4 18. Rxc4 {[%emt 0:00:44]} Rag8 {[%emt 0:02:51]} 19. Rac1 {[%emt 0:07:36]} Rg7 $2 {[%emt 0:00:45] [#] This move loses the game for Black.} (19... Rb8 $16 20. Rxc6 Rb6) 20. Kf1 {[%emt 0:00:19]} Qb5 {[%emt 0:06:25]} 21. Ne1 {[%emt 0:05:39]} Nd5 {[%emt 0:05:51]} 22. Rxc6 {[%emt 0:00:20]} Rb8 {[%emt 0:01:56]} (22... Qxd3+ $142 23. Nxd3 Rhg8) 23. Ra6 $18 {[%emt 0:03:18]} Qb7 {[%emt 0:01:42]} 24. Qa3 {[%emt 0:02:40]} Qb5+ {[%emt 0:00:17]} 25. Kg1 {[%emt 0:03:21]} Qe2 $2 {[%emt 0:07:35] [#]} (25... Ke7 26. Rxa7+ Rb7) 26. Rxd6+ $1 {[%emt 0:01:14][%mdl 512]} Kxd6 {[%emt 0:00:06]} (26... Ke8 27. Qxa7) 27. b5+ {[%emt 0:00:04] Weighted Error Value: White=0.18 (very precise) /Black=0.63.  Loses game:     	---       	Black=1      Mistake:       	---       	Black=3      Inaccurate:     	White=2     	Black=4      OK:         	White=8     	Black=8      Best:        	White=1     	---        Brilliant:      	White=1     	---} 1-0

[Event "Arona Festival 2024"]
[Site "Arona Tenerife"]
[Date "2024.06.24"]
[Round "4.9"]
[White "Socko, Monika"]
[Black "Krysa, Leandro"]
[Result "1/2-1/2"]
[ECO "D02"]
[WhiteElo "2416"]
[BlackElo "2535"]
[Annotator "TA"]
[PlyCount "32"]
[EventDate "2024.06.20"]
[EventType "swiss"]
[EventCountry "ESP"]
[SourceTitle "playchess.com"]
[Source "ChessBase"]
[SourceQuality "1"]
[TimeControl "5400+30"]

{[%evp 9,32,2,-1,-2,-4,-38,-42,-25,11,28,29,23,22,26,18,7,47,0,21,5,26,0,2,0,0]} 1. d4 {[%emt 0:00:06]} Nf6 {[%emt 0:00:26]} 2. Nf3 {[%emt 0:00:06]} d5 {[%emt 0:00:16]} 3. g3 {[%emt 0:00:24]} c5 {[%emt 0:00:25]} 4. Bg2 {[%emt 0:01:59]} cxd4 {[%emt 0:00:28]} 5. O-O {[%emt 0:00:05]} h6 {[%emt 0:00:52]} 6. a3 {[%emt 0:00:30]} e6 {[%emt 0:10:31]} 7. b4 {[%emt 0:02:23][%cal Oc1b2]} a5 {[%emt 0:02:02]} 8. b5 {[%emt 0:00:39][%cal Oc1b2] Black is slightly better.} a4 {[%emt 0:01:24]} 9. Qxd4 {[%emt 0:04:10]} Nbd7 {[%emt 0:01:57]} 10. c4 {[%emt 0:05:43]} Bc5 {[%emt 0:04:45]} 11. Qc3 {[%emt 0:00:31]} Qe7 {[%emt 0:14:06]} 12. Bb2 {[%emt 0:04:33]} Nb6 {[%emt 0:10:32]} 13. Nbd2 {[%emt 0:04:24]} (13. cxd5 $14 {should be considered.} exd5 14. e3) 13... Bd7 {[%emt 0:02:18]} 14. Ne5 {[%emt 0:04:43]} Rc8 {[%emt 0:02:31]} 15. Rac1 {[%emt 0:05:54]} O-O {[%emt 0:07:18]} 16. Nxd7 Qxd7 {[%emt 0:02:09] Weighted Error Value: White=0.10 (very precise) /Black=0.12 (very precise) .  Mistake:       	White=1     	---        Inaccurate:     	White=1     	Black=2      OK:         	White=6     	Black=4} 1/2-1/2

[Event "Arona Festival 2024"]
[Site "Arona Tenerife"]
[Date "2024.06.24"]
[Round "5.1"]
[White "Kantor, Gergely"]
[Black "Pichot, Alan"]
[Result "1/2-1/2"]
[ECO "D37"]
[WhiteElo "2528"]
[BlackElo "2640"]
[Annotator "TA"]
[PlyCount "68"]
[EventDate "2024.06.20"]
[EventType "swiss"]
[EventCountry "ESP"]
[SourceTitle "playchess.com"]
[Source "ChessBase"]
[SourceQuality "1"]
[TimeControl "5400+30"]

{[%evp 9,68,29,33,34,37,24,37,27,29,21,34,33,27,35,40,0,0,0,0,0,0,0,0,0,0,0,0,0,14,4,17,4,0,0,0,0,18,15,40,9,46,49,28,36,39,44,39,39,34,34,60,62,70,65,69,64,62,54,55,33,31]} 1. d4 {[%emt 0:05:42]} Nf6 {[%emt 0:00:09]} 2. c4 {[%emt 0:00:01]} e6 {[%emt 0:00:10]} 3. Nf3 {[%emt 0:00:06]} d5 {[%emt 0:00:13]} 4. Nc3 {[%emt 0:00:12]} h6 {[%emt 0:00:28]} 5. Bf4 {[%emt 0:02:49]} Bd6 {[%emt 0:00:46]} 6. Bxd6 {[%emt 0:01:00]} Qxd6 {[%emt 0:00:09]} 7. e3 {[%emt 0:00:03]} O-O {[%emt 0:00:28]} 8. Rc1 {[%emt 0:00:09]} a6 {[%emt 0:00:27]} 9. a3 {[%emt 0:06:54]} Nbd7 {[%emt 0:08:59]} 10. cxd5 {[%emt 0:02:24]} exd5 {[%emt 0:01:09]} 11. Bd3 {[%emt 0:00:17]} b6 {[%emt 0:00:45]} 12. b4 {[%emt 0:09:07]} c5 {[%emt 0:02:13]} 13. bxc5 {[%emt 0:02:20]} bxc5 {[%emt 0:03:38]} 14. dxc5 {[%emt 0:01:51]} Nxc5 {[%emt 0:00:09]} 15. Be2 {[%emt 0:07:39]} Bd7 {[%emt 0:06:58]} 16. O-O {[%emt 0:01:20]} Rfc8 {[%emt 0:03:27]} 17. Nd4 {[%emt 0:03:37]} Rab8 {[%emt 0:03:30]} 18. h3 {[%emt 0:12:59]} Nce4 {[%emt 0:06:44]} 19. Qd3 {[%emt 0:03:28]} a5 {[%emt 0:02:48]} 20. Nxe4 {[%emt 0:03:04]} Nxe4 {[%emt 0:02:22]} 21. Bf3 {[%emt 0:10:16]} a4 {[%emt 0:03:40]} 22. Rxc8+ {[%emt 0:02:05]} Rxc8 {[%emt 0:00:32]} 23. Ne2 {[%emt 0:00:33] Inhibits Rc3.} Bf5 {[%emt 0:09:53][%cal Oe4g3]} 24. Nf4 {[%emt 0:03:10][%cal Of1d1]} Rd8 {[%emt 0:13:25][%cal Oe4g3] [#] White must now prevent ...Ng3!} ({Much worse is} 24... Ng3 25. Qxd5 Qxd5 (25... Qxa3 $2 {too greedy.} 26. fxg3 Qxe3+ 27. Kh2 $18) 26. Nxd5 Nxf1 27. Ne7+ Kh8 28. Nxc8 $16 (28. Nxf5 $2 Rc1 $19)) 25. Qd4 {[%emt 0:02:07]} Ng5 {[%emt 0:10:59]} 26. Bxd5 {[%emt 0:05:52]} Ne6 $1 {[%emt 0:00:07] White is slightly better.} 27. Bxe6 {[%emt 0:05:13]} ({Worse is} 27. Qxa4 Nxf4 28. Bf3 Nd3 $19) 27... Qxd4 {[%emt 0:00:07]} 28. exd4 {[%emt 0:00:56]} fxe6 $14 {[%emt 0:00:07][%cal Bf7e6,Be6e5][%mdl 4128] Endgame. KRB-KRN} 29. Rd1 {[%emt 0:00:57]} e5 {[%emt 0:07:46]} 30. Ne2 {[%emt 0:00:52]} Bc2 {[%emt 0:00:07]} 31. Rd2 {[%emt 0:00:55]} Bb3 {[%emt 0:00:06]} 32. f3 {[%emt 0:02:42]} exd4 {[%emt 0:01:03]} 33. Nxd4 {[%emt 0:00:38]} Rc8 {[%emt 0:00:12]} 34. Rd3 {[%emt 0:01:58]} Rc1+ {[%emt 0:00:43] Weighted Error Value: White=0.05 (flawless) /Black=0.07 (flawless) .  Inaccurate:     	White=2     	Black=2      OK:         	White=15    	Black=10     Strong:       	---       	Black=1} 1/2-1/2

[Event "Arona Festival 2024"]
[Site "Arona Tenerife"]
[Date "2024.06.24"]
[Round "5.2"]
[White "Paichadze, Luka"]
[Black "Peralta, Fernando"]
[Result "1-0"]
[ECO "C02"]
[WhiteElo "2504"]
[BlackElo "2562"]
[Annotator "TA"]
[PlyCount "99"]
[EventDate "2024.06.20"]
[EventType "swiss"]
[EventCountry "ESP"]
[SourceTitle "playchess.com"]
[Source "ChessBase"]
[SourceQuality "1"]
[TimeControl "5400+30"]

{[%evp 19,99,0,10,0,0,0,29,0,18,18,32,8,15,0,0,-9,0,0,-7,0,0,0,0,0,14,16,57,41,98,103,113,105,113,113,113,113,113,113,161,135,134,135,149,120,148,141,145,145,180,145,145,145,316,138,262,238,389,278,269,200,195,182,238,250,254,206,216,220,231,190,1446,1293,12793,12793,29961,12836,29980,29981,29981,29982,29996,29997]} 1. e4 {[%emt 0:00:04]} e6 {[%emt 0:01:23]} 2. d4 {[%emt 0:00:20]} d5 {[%emt 0:00:05]} 3. e5 {[%emt 0:00:06]} c5 {[%emt 0:00:12]} 4. c3 {[%emt 0:00:05]} Nc6 {[%emt 0:00:04]} 5. Nf3 {[%emt 0:00:04]} Bd7 {[%emt 0:00:22]} 6. Be2 {[%emt 0:00:32]} Nge7 {[%emt 0:00:12]} 7. Na3 {[%emt 0:01:52]} Nf5 {[%emt 0:00:54]} 8. Nc2 {[%emt 0:01:41]} cxd4 {[%emt 0:01:09]} 9. cxd4 {[%emt 0:01:03]} Qb6 {[%emt 0:00:56]} 10. O-O {[%emt 0:02:25]} a5 {[%emt 0:00:20]} 11. Kh1 {[%emt 0:04:14]} Rc8 {[%emt 0:03:02]} 12. Bd2 {[%emt 0:07:59]} Na7 {[%emt 0:31:08][%cal Od7a4]} (12... Nfxd4 $2 {loses.} 13. Ncxd4 (13. Be3 Qd8 $18) 13... Be7 (13... Nxd4 $2 14. Be3 $18) 14. Qb3 $18) 13. Ne3 {[%emt 0:14:16] White has an edge.} Nxe3 {[%emt 0:02:35]} (13... Nxd4 $5 14. Nxd5 exd5 $11) 14. fxe3 {[%emt 0:00:52]} Be7 {[%emt 0:03:15][%cal Od7b5] Wards off Ng5} 15. a4 {[%emt 0:04:29]} O-O {[%emt 0:02:01]} 16. Qe1 {[%emt 0:07:18]} Nc6 {[%emt 0:06:40][%cal Oc6b4]} 17. Bb5 {[%emt 0:00:17]} Rc7 {[%emt 0:06:04]} 18. Bxc6 {[%emt 0:06:48]} Rxc6 {[%emt 0:00:18]} 19. Bxa5 {[%emt 0:00:04]} Qb3 {[%emt 0:00:48][%cal Oc6a6]} ({Much worse is} 19... Qxb2 20. Rb1 Qa3 21. Rxb7 $14) 20. Bc3 {[%emt 0:01:06]} Ra6 {[%emt 0:07:20]} 21. Nd2 {[%emt 0:02:45][%cal Bf3d2,Bd2b3,Bb3c5][%mdl 32]} Qc2 {[%emt 0:01:22]} 22. a5 {[%emt 0:00:24]} Qd3 {[%emt 0:02:20]} 23. Nb3 {[%emt 0:05:33]} Qc4 {[%emt 0:05:24] [#]} ({Black should play} 23... Bb5 $14) 24. Nc5 $1 $16 {[%emt 0:01:28]} Bxc5 {[%emt 0:01:43]} (24... Bb5 25. Rf2) 25. dxc5 {[%emt 0:00:02]} Bb5 {[%emt 0:01:54]} 26. Rf4 {[%emt 0:00:40]} Qd3 {[%emt 0:00:18]} 27. h3 {[%emt 0:07:42]} h6 {[%emt 0:02:07]} 28. Rd1 {[%emt 0:00:35][%cal Ba1d1,Bd1d2,Bd2f2,Bf2f3,Bf3g3][%mdl 32]} Qh7 {[%emt 0:03:16]} (28... Qe2 $16 {is a better defense.} 29. Qg1 Qh5) 29. Rd2 {[%emt 0:04:10] Black is weak on the dark squares} Rc6 {[%emt 0:01:48]} 30. b4 {[%emt 0:00:37] White is more active.} Rc7 {[%emt 0:00:52]} 31. Bd4 {[%emt 0:01:05]} Bd3 {[%emt 0:01:56]} 32. Rdf2 {[%emt 0:00:45]} Qg6 {[%emt 0:02:40]} 33. R2f3 {[%emt 0:01:21]} Rcc8 {[%emt 0:00:12]} 34. Rg4 {[%emt 0:00:37]} Qh7 {[%emt 0:00:04]} 35. Rfg3 {[%emt 0:01:00] Black must now prevent Rxg7+.} Kh8 {[%emt 0:01:19] A mistake that costs the game.} (35... g6 $16 36. Rh4 Be4) 36. Rf4 {[%emt 0:04:09]} (36. Rxg7 $18 {is more deadly.} Qxg7 37. Rxg7 Kxg7 38. Qd2) 36... Bb5 {[%emt 0:02:03]} (36... Kg8 $16 {was necessary.} 37. Kh2 Rcd8) 37. Kh2 {[%emt 0:00:24]} Qc2 $2 {[%emt 0:00:20]} (37... Rc7 {was worth a try.} 38. c6 Rfc8 39. cxb7 Rxb7) 38. Rfg4 {[%emt 0:03:26]} Rg8 {[%emt 0:00:34]} 39. Rf3 {[%emt 0:01:05]} Rc7 {[%emt 0:01:48]} 40. Rgf4 $36 {[%emt 0:00:11][%mdl 2048] White is really pushing.} Rf8 {[%emt 0:00:31]} (40... g5 $142 41. Rf6 (41. Rxf7 g4 $18) 41... Kg7) 41. Qg3 $18 {[%emt 0:01:01]} Bd3 {[%emt 0:00:27] [#]} 42. c6 $1 {[%emt 0:04:10][%mdl 512]} Qxc6 {[%emt 0:03:46]} 43. Bc5 {[%emt 0:00:05]} Rg8 {[%emt 0:01:54]} 44. Rxf7 {[%emt 0:00:53]} Bf5 $2 {[%emt 0:00:04]} (44... Rd7 45. Bd6 Kh7) 45. R3xf5 {[%emt 0:03:31]} exf5 {[%emt 0:00:04]} 46. e6 $1 {[%emt 0:00:02]} f4 {[%emt 0:03:37]} 47. Qxf4 {[%emt 0:04:36]} Rcc8 {[%emt 0:00:24]} 48. Bd4 {[%emt 0:00:47][%cal Rf4h6] White mates.} Qxe6 {[%emt 0:01:33] [#]} 49. Rf6 $3 {[%emt 0:00:10][%mdl 512]} Qxf6 {[%emt 0:00:18]} (49... Rgf8 50. Rxf8+) 50. Bxf6 {[%emt 0:00:04] Weighted Error Value: White=0.16 (very precise) /Black=0.44.  Loses game:     	---       	Black=1      Missed win:     	White=1     	---        Mistake:       	---       	Black=6      Inaccurate:     	White=1     	Black=3      OK:         	White=14    	Black=11     Best:        	White=4     	Black=1      Brilliant:      	White=1     	---} 1-0

[Event "Arona Festival 2024"]
[Site "Arona Tenerife"]
[Date "2024.06.24"]
[Round "5.3"]
[White "David, Alberto"]
[Black "Sankalp Gupta"]
[Result "1/2-1/2"]
[ECO "B13"]
[WhiteElo "2502"]
[BlackElo "2552"]
[Annotator "TA"]
[PlyCount "73"]
[EventDate "2024.06.20"]
[EventType "swiss"]
[EventCountry "ESP"]
[SourceTitle "playchess.com"]
[Source "ChessBase"]
[SourceQuality "1"]
[TimeControl "5400+30"]

{[%evp 12,73,12,15,17,13,13,19,18,7,18,15,20,13,20,16,37,0,17,0,0,0,2,0,0,0,0,0,25,18,29,0,32,0,16,0,0,-12,24,15,31,25,8,10,21,10,20,0,5,0,51,41,35,39,44,53,47,13,16,0,0,0,0,0]} 1. e4 {[%emt 0:00:16]} c6 {[%emt 0:04:53]} 2. d4 {[%emt 0:01:41]} d5 {[%emt 0:00:05]} 3. exd5 {[%emt 0:00:05]} cxd5 {[%emt 0:00:05]} 4. Bd3 {[%emt 0:00:13]} Nc6 {[%emt 0:00:08]} 5. c3 {[%emt 0:00:05]} Nf6 {[%emt 0:00:07]} 6. Bf4 {[%emt 0:00:34]} Bg4 {[%emt 0:00:04]} 7. Qb3 {[%emt 0:04:44]} e5 {[%emt 0:00:09]} 8. dxe5 {[%emt 0:08:55]} Nh5 {[%emt 0:00:15]} 9. Be3 {[%emt 0:00:17]} Nxe5 {[%emt 0:00:04]} 10. Bb5+ {[%emt 0:00:05]} Nc6 {[%emt 0:00:10]} 11. Nd2 {[%emt 0:03:05]} Nf6 {[%emt 0:00:09]} 12. Ngf3 {[%emt 0:01:13]} Bd6 {[%emt 0:00:04]} 13. O-O {[%emt 0:10:25]} h6 {[%emt 0:00:05]} 14. Qa4 {[%emt 0:06:43]} O-O {[%emt 0:21:00]} 15. Rfe1 {[%emt 0:22:35]} Qc7 {[%emt 0:03:48]} 16. h3 {[%emt 0:00:49]} Bd7 {[%emt 0:00:19]} 17. Qh4 {[%emt 0:01:17][%cal Oe3h6]} Ne7 {[%emt 0:01:12]} 18. Qa4 {[%emt 0:02:37][%cal Oe3d4]} Bf5 {[%emt 0:05:59]} 19. Bf1 {[%emt 0:10:31]} Bh7 {[%emt 0:07:00]} 20. Bd4 {[%emt 0:02:22][%cal Od4f6]} Nd7 {[%emt 0:05:30][%cal Bf6d7,Bd7e5,Be5c4][%mdl 32]} 21. Qd1 {[%emt 0:01:02]} Nc6 {[%emt 0:06:03]} 22. Be3 {[%emt 0:04:08]} a6 {[%emt 0:03:38]} 23. Rc1 {[%emt 0:00:30]} Rad8 {[%emt 0:02:56]} 24. Nb3 {[%emt 0:09:47]} Nce5 {[%emt 0:06:43]} 25. Nxe5 {[%emt 0:00:26]} Nxe5 {[%emt 0:00:04] [#]} 26. Bc5 $1 {[%emt 0:00:35]} Bxc5 {[%emt 0:05:19]} 27. Nxc5 {[%emt 0:00:05]} Nc4 {[%emt 0:00:07]} 28. b4 {[%emt 0:00:04]} a5 {[%emt 0:00:19]} 29. Qg4 {[%emt 0:02:30]} b6 {[%emt 0:01:22]} 30. Nb3 {[%emt 0:00:14][%cal Bc5b3,Bb3d4,Bd4c6,Bc6e7,Be7d5][%mdl 32]} axb4 {[%emt 0:04:11]} (30... Rfe8 $11) 31. cxb4 $14 {[%emt 0:00:11]} Qa7 {[%emt 0:00:34]} 32. Nd4 {[%emt 0:00:16] [#] aiming for Nc6.} Qxa2 {[%emt 0:05:32]} 33. Nc6 {[%emt 0:03:52][%csl LRc4,LRd8]} Rd6 {[%emt 0:04:13]} 34. Ne7+ {[%emt 0:00:05]} Kh8 {[%emt 0:00:03] The position is equal.} 35. Nxd5 {[%emt 0:00:18]} Nd2 {[%emt 0:00:41]} 36. Rc8 {[%emt 0:02:08]} Rdd8 37. Rxd8 {[%emt 0:02:23] Weighted Error Value: White=0.09 (flawless) /Black=0.07 (flawless) .  Mistake:       	---       	Black=1      Inaccurate:     	White=2     	Black=2      OK:         	White=12    	Black=14     Best:        	---       	Black=3} ({Much weaker is} 37. Nxb6 Rxc8 38. Nxc8 Nxf1 $19 (38... f5 39. Qd4 $16)) 1/2-1/2

[Event "Arona Festival 2024"]
[Site "Arona Tenerife"]
[Date "2024.06.24"]
[Round "5.4"]
[White "Sosa, Tomas"]
[Black "Baenziger, Fabian"]
[Result "1/2-1/2"]
[ECO "C07"]
[WhiteElo "2535"]
[BlackElo "2410"]
[Annotator "TA"]
[PlyCount "89"]
[EventDate "2024.06.20"]
[EventType "swiss"]
[EventCountry "ESP"]
[SourceTitle "playchess.com"]
[Source "ChessBase"]
[SourceQuality "1"]
[TimeControl "5400+30"]

{[%evp 11,89,2,5,1,28,5,12,15,4,21,27,27,29,25,26,30,34,24,35,22,18,29,27,19,42,30,44,38,42,40,48,25,33,20,37,22,56,43,52,55,62,27,37,11,12,0,52,35,45,45,58,25,27,19,7,19,20,10,47,19,75,32,55,48,116,110,125,118,312,12,73,67,76,8,6,6,7,0,0,0]} 1. e4 {[%emt 0:06:49]} e6 {[%emt 0:00:21]} 2. d4 {[%emt 0:00:11]} d5 {[%emt 0:00:06]} 3. Nd2 {[%emt 0:00:04]} c5 {[%emt 0:00:45]} 4. Ngf3 {[%emt 0:00:06]} cxd4 {[%emt 0:00:08]} 5. Nxd4 {[%emt 0:00:06]} Nf6 {[%emt 0:00:12]} 6. exd5 {[%emt 0:00:34]} Nxd5 {[%emt 0:00:30]} 7. c3 {[%emt 0:00:27]} Bd7 {[%emt 0:05:54]} 8. N2f3 {[%emt 0:00:14]} Nc6 {[%emt 0:01:46]} 9. Nxc6 {[%emt 0:04:58]} Bxc6 {[%emt 0:00:15]} 10. Ne5 {[%emt 0:00:24]} Bd6 {[%emt 0:04:25]} 11. Nxc6 {[%emt 0:00:54]} bxc6 {[%emt 0:00:05]} 12. g3 {[%emt 0:00:36]} Qc7 {[%emt 0:04:20]} 13. Bg2 {[%emt 0:01:20]} O-O {[%emt 0:03:41]} 14. O-O {[%emt 0:01:16]} Rab8 {[%emt 0:00:05]} 15. a3 {[%emt 0:04:57]} Rfd8 {[%emt 0:05:42]} 16. Qc2 {[%emt 0:00:51]} Be5 {[%emt 0:05:26]} 17. Bg5 {[%emt 0:05:26]} Rd7 {[%emt 0:01:14]} 18. Rad1 {[%emt 0:00:30]} c5 {[%emt 0:07:31]} 19. Rfe1 {[%emt 0:02:33]} h6 {[%emt 0:05:29]} 20. Bc1 {[%emt 0:04:24]} Rbd8 {[%emt 0:00:42]} 21. Bf3 {[%emt 0:04:33]} Bf6 {[%emt 0:08:15]} 22. h4 {[%emt 0:04:55]} c4 {[%emt 0:08:03]} 23. Qe4 {[%emt 0:03:21]} Nb6 {[%emt 0:05:11]} 24. Bf4 {[%emt 0:02:40]} (24. Rxd7 {simplifies} Rxd7 25. Qc6 Qxc6 26. Bxc6 Rd6 27. Bb5) 24... Qc5 {[%emt 0:00:58]} 25. Be3 {[%emt 0:02:47] A strong pair of Bishops.} Qc7 {[%emt 0:03:57]} 26. Be2 {[%emt 0:06:34] White is more active.} Na4 {[%emt 0:01:22]} 27. Rxd7 {[%emt 0:01:08]} (27. Qxc4 $2 Qxc4 (27... Nxb2 $2 28. Qxc7 Rxc7 29. Rxd8+ Bxd8 30. Rb1 $18) 28. Rxd7 Qe4 $19) 27... Rxd7 {[%emt 0:00:15]} 28. Bc1 {[%emt 0:02:13]} (28. Qxc4 {simplifies} Qxc4 29. Bxc4 Nxb2 30. Be2) 28... Nb6 {[%emt 0:00:15]} (28... Qb7 $11 29. Qc2 Qa6) 29. Kg2 {[%emt 0:05:17]} Be7 {[%emt 0:05:31]} 30. Bd1 {[%emt 0:04:23]} Nd5 {[%emt 0:02:49]} 31. Bc2 {[%emt 0:01:32]} Nf6 {[%emt 0:00:05] Dodges Qh7+} 32. Qa8+ {[%emt 0:00:50]} Rd8 {[%emt 0:00:05]} 33. Qf3 {[%emt 0:00:05]} Rd5 {[%emt 0:00:10]} 34. Rd1 {[%emt 0:01:29]} Qb7 {[%emt 0:03:49]} 35. Rd4 {[%emt 0:04:43]} Qc6 {[%emt 0:04:08]} (35... Qc7 $11) 36. Be3 {[%emt 0:00:25]} a5 {[%emt 0:01:34]} 37. g4 {[%emt 0:07:56] Threatens to win with g5.} Qb5 {[%emt 0:00:52] [#]} (37... Rc5 $14) 38. g5 $1 $16 {[%emt 0:00:40]} hxg5 {[%emt 0:01:12]} 39. hxg5 {[%emt 0:00:02]} Nd7 {[%emt 0:03:39] [#]} ({Avoid the trap} 39... Rxd4 $2 40. gxf6 (40. cxd4 Nd5 $11) 40... Rd7 41. a4 $18 (41. fxe7 Rxe7 42. Qa8+ Re8 $16)) (39... Rxg5+ $16 40. Bxg5 Qxg5+ 41. Kf1 Nd5 (41... Qc1+ $2 42. Qd1 $18)) 40. Rxd5 $2 (40. a4 $1 $18 {[%cal Ra4b5]} Qc6 (40... Qxb2 $2 {too greedy.} 41. Bh7+ Kf8 42. Rxd5 $18) 41. Be4) 40... Qxd5 {[%emt 0:00:28]} (40... exd5 $11 {keeps the balance.} 41. Qh5 Nf8) 41. Qxd5 {[%emt 0:08:31]} exd5 {[%emt 0:00:04]} 42. f4 {[%emt 0:00:09]} ({Better is} 42. Ba4 $16 Ne5 43. f4) 42... Bc5 $11 {[%emt 0:02:32] The position is equal.} 43. Kf2 {[%emt 0:01:08] Black must now prevent Ba4.} Kf8 {[%emt 0:00:21]} 44. Bf5 {[%emt 0:02:58]} Ke7 {[%emt 0:00:15]} 45. Ke2 {[%emt 0:02:03] Weighted Error Value: White=0.19 (very precise) /Black=0.20 (precise) .  Loses game:     	---       	Black=1      Missed win:     	White=1     	---        Mistake:       	White=1     	Black=4      Inaccurate:     	White=5     	Black=3      OK:         	White=13    	Black=11     Best:        	---       	Black=1      Strong:       	White=1     	---} 1/2-1/2